bitfinex-derivatives/quotes_ETHF0:USTF0_20250708
["timestamp","ask_amount","ask_price","bid_price","bid_amount"]
[1752000903543,0.76249,2622.6,2622.5,0.652]
[1752000903740,0.76249,2622.6,2622.5,1.332]
[1752000903943,0.76249,2622.6,2622.5,1.80845666]
[1752000904143,0.76249,2622.6,2622.5,1.45087733]
[1752000904348,1.45619,2622.6,2622.5,0.68835733]
[1752000904743,1.45619,2622.6,2622.5,0.68]
[1752000904944,2.08369,2622.6,2622.5,0.68]
[1752000905651,0.76255,2622.4,2622.3,3.05189967]
[1752000905946,0.76261,2622.2,2622.1,3.05195967]
[1752000906150,1.45631,2622.2,2622.1,2.28932967]
[1752000906452,0.76261,2622.2,2622.1,3.73196967]
[1752000906652,0.76261,2622.2,2622.1,1.44264]
[1752000906951,1.45631,2622.2,2622.1,1.44264]
[1752000907154,0.7626,2622.3,2622.2,0.7626]
[1752000907346,0.7626,2622.3,2622.2,2.30153659]
[1752000907544,3.2078,2622.4,2622.2,3.06414659]
[1752000907745,0.76258,2622.3,2622.2,3.74414659]
[1752000908046,3.2078,2622.4,2622.3,1.78108]
[1752000908250,0.76255,2622.5,2622.4,0.76254]
[1752000908450,0.76255,2622.5,2622.4,3.07607659]
[1752000908854,1.45625,2622.5,2622.4,0.68]
[1752000909049,1.45625,2622.5,2622.4,1.44255]
[1752000909952,1.45625,2622.5,2622.4,1.15646179]
[1752000910347,1.45622,2622.5,2622.4,1.15646179]
[1752000910547,0.6937,2622.5,2622.4,1.15646179]
[1752000910754,0.76249,2622.6,2622.5,0.76252]
[1752000911046,0.76249,2622.6,2622.5,3.07605659]
[1752000911855,1.45619,2622.6,2622.5,3.07605659]
[1752000913256,0.76249,2622.6,2622.5,2.39605659]
[1752000913553,3.97027,2622.7,2622.6,0.76249]
[1752000913759,3.2078,2622.7,2622.6,1.63353659]
[1752000914052,1.90581,2623.2,2622.6,1.63353659]
[1752000914053,0.76233,2623.2,2623.1,0.76232]
[1752000914254,0.6729,2623.4,2623.3,0.76229]
[1752000914456,0.6729,2623.4,2623.3,2.39582659]
[1752000914659,0.6937,2623.4,2623.3,2.39582659]
[1752000915452,0.957,2623.5,2623.4,0.76226]
[1752000915656,0.957,2623.5,2623.4,3.97006]
[1752000916056,1.6507,2623.5,2623.4,3.68409587]
[1752000916255,0.957,2623.5,2623.4,3.68409587]
[1752000916761,1.6507,2623.5,2623.4,0.47629587]
[1752000916956,0.7623,2623.3,2623.2,0.7623]
[1752000917358,1.456,2623.3,2623.2,1.4423]
[1752000917661,0.76233,2623.2,2623.1,0.76233]
[1752000917856,1.63353659,2623.2,2623.1,0.68]
[1752000918065,0.76235,2623.1,2622.8,1.0185]
[1752000918256,3.01053659,2623.2,2622.7,2.92482967]
[1752000918463,1.4265,2623.0,2622.9,0.7624]
[1752000918862,2.1202,2623.0,2622.9,1.4424]
[1752000919362,0.6641,2623.0,2622.9,1.4424]
[1752000919759,1.3578,2623.0,2622.9,1.4424]
[1752000920754,2.07619,2623.0,2622.7,3.2078]
[1752000920960,1.3092,2622.9,2622.8,0.76243]
[1752000921156,1.3138,2623.0,2622.9,1.3988]
[1752000921552,1.3138,2623.0,2622.9,0.89823401]
[1752000921754,1.3138,2623.0,2622.9,0.6364]
[1752000922058,4.5216,2623.0,2622.9,0.7624]
[1752000922561,4.5216,2623.0,2622.9,1.3988]
[1752000923361,3.8719,2623.0,2622.9,1.3988]
[1752000923562,3.2078,2623.0,2622.9,1.3988]
[1752000923957,3.8575,2623.0,2622.9,1.3988]
[1752000924152,3.2078,2623.0,2622.9,0.7624]
[1752000924460,3.2078,2623.0,2622.9,1.3988]
[1752000924657,3.8575,2623.0,2622.9,1.3988]
[1752000925764,3.8575,2623.0,2622.9,1.75634731]
[1752000926066,3.57146102,2623.0,2622.9,1.75634731]
[1752000926662,3.57146102,2623.0,2622.9,2.78824731]
[1752000926862,3.97009,2623.3,2622.9,2.78824731]
[1752000927065,3.97009,2623.3,2623.2,0.76232]
[1752000927359,4.61979,2623.3,2623.2,1.75626731]
[1752000929066,3.2078,2623.6,2623.2,2.02584731]
[1752000929261,6.62967318,2623.9,2623.6,0.76218]
[1752000929565,0.6497,2623.7,2623.6,1.39858]
[1752000929766,0.6497,2623.7,2623.6,1.75607256]
[1752000929967,1.3392,2623.7,2623.6,1.75607256]
[1752000930368,2.10137,2623.7,2623.6,0.99389256]
[1752000930564,4.32217,2623.7,2623.6,0.35749256]
[1752000930763,12.70957717,2623.7,2623.6,0.35749256]
[1752000931465,4.32217,2623.7,2623.6,0.35749256]
[1752000931768,4.32217,2623.7,2623.6,0.99389256]
[1752000932070,3.37167,2623.7,2623.6,0.99389256]
[1752000932369,3.37167,2623.7,2623.6,1.75609256]
[1752000932666,2.6095,2623.7,2623.6,1.75609256]
[1752000933560,2.6095,2623.7,2623.6,1.11969256]
[1752000933766,2.6095,2623.7,2623.6,1.75609256]
[1752000933965,2.6095,2623.7,2623.6,1.11969256]
[1752000934563,2.6095,2623.7,2623.6,1.75609256]
[1752000936369,3.2078,2623.9,2623.8,0.76214]
[1752000936561,4.808,2623.9,2623.8,0.35749256]
[1752000936765,5.57011,2623.9,2623.8,0.35749256]
[1752000937164,4.808,2623.9,2623.8,0.35749256]
[1752000937370,5.57011,2623.9,2623.8,0.35749256]
[1752000937672,6.1079,2623.9,2623.8,0.99389256]
[1752000937865,6.1079,2623.9,2623.8,0.35749256]
[1752000938069,6.1079,2623.9,2623.8,1.75603256]
[1752000938774,6.87001,2623.9,2623.8,1.75603256]
[1752000938970,6.87001,2623.9,2623.8,1.75600098]
[1752000939168,6.87001,2623.9,2623.8,0.99386098]
[1752000939568,6.87001,2623.9,2623.8,0.35746098]
[1752000940770,6.87001,2623.9,2623.8,0.99386098]
[1752000940971,5.91951,2623.9,2623.8,0.99386098]
[1752000941167,5.91951,2623.9,2623.8,0.35746098]
[1752000941367,5.91951,2623.9,2623.8,0.99386098]
[1752000941564,3.72153061,2624.4,2623.8,6.75600098]
[1752000941565,3.42187318,2624.4,2623.8,6.75600098]
[1752000941769,4.57425388,2625.1,2625.0,0.76179]
[1752000942073,0.6606,2625.3,2625.2,0.76173]
[1752000942273,0.6606,2625.3,2625.2,1.11917911]
[1752000942472,0.6606,2625.3,2625.2,1.75557911]
[1752000942473,1.3103,2625.3,2625.2,1.75557911]
[1752000943370,0.76166,2625.5,2625.3,0.76169]
[1752000943572,0.6497,2625.4,2625.3,0.6364]
[1752000943767,3.03882801,2625.4,2625.3,0.35722336]
[1752000944366,1.41138,2625.4,2625.3,0.35722336]
[1752000944573,1.41138,2625.4,2625.3,0.99362336]
[1752000944870,1.41138,2625.4,2625.3,0.35722336]
[1752000944871,0.6497,2625.4,2625.3,0.35722336]
[1752000945272,1.41138,2625.4,2625.3,0.35722336]
[1752000945673,0.76168,2625.4,2625.3,0.35722336]
[1752000945873,1.41138,2625.4,2625.3,0.99362336]
[1752000946075,1.41138,2625.4,2625.3,0.35722336]
[1752000946680,4.61918,2625.4,2625.3,0.35722336]
[1752000946978,0.76181,2625.0,2624.7,0.76187]
[1752000947280,9.61918,2625.4,2625.0,0.76179]
[1752000947281,2.04803,2625.3,2625.0,0.76179]
[1752000947485,0.6497,2625.1,2625.0,0.76179]
[1752000948281,0.6497,2625.1,2625.0,1.39819]
[1752000948877,0.6497,2625.1,2625.0,0.6364]
[1752000949080,1.41146,2625.1,2625.0,0.6364]
[1752000949277,0.9505,2625.7,2625.0,6.3541]
[1752000949471,54.907,2626.7,2625.0,6.3541]
[1752000949472,0.76146,2626.2,2625.6,3.2078]
[1752000949778,0.76151,2626.0,2625.8,0.76155]
[1752000949983,0.76151,2626.0,2625.7,2.77197]
[1752000950180,1.2863,2626.2,2625.7,2.0104]
[1752000950384,0.9505,2626.3,2626.0,0.7615]
[1752000950875,0.9505,2626.3,2626.0,3.2078]
[1752000951077,1.71193,2626.3,2626.1,0.76146]
[1752000951479,0.76144,2626.2,2626.1,0.76146]
[1752000951682,0.76147,2626.1,2626.0,3.2078]
[1752000952281,0.76147,2626.1,2626.0,3.9693]
[1752000952479,0.76147,2626.1,2626.0,3.2078]
[1752000953377,0.76146,2626.2,2626.0,3.96929]
[1752000953781,0.76147,2626.1,2626.0,3.96929]
[1752000954079,0.76147,2626.1,2626.0,4.6032]
[1752000954274,0.6699,2626.2,2626.0,4.6032]
[1752000954275,1.9034,2626.5,2626.0,3.96929]
[1752000954480,0.76147,2626.2,2626.0,3.2078]
[1752000954681,1.43137,2626.2,2626.0,3.2078]
[1752000954880,0.76143,2626.3,2626.1,1.39536]
[1752000955082,2.54913,2626.6,2626.1,0.6339]
[1752000955278,0.76142,2626.3,2626.2,0.76143]
[1752000955480,0.76144,2626.3,2626.1,0.76145]
[1752000955681,0.76144,2626.3,2626.2,1.39534]
[1752000956184,0.76144,2626.3,2626.2,0.6339]
[1752000956485,0.76141,2626.4,2626.2,0.6339]
[1752000956784,0.76142,2626.3,2626.2,1.39532]
[1752000957775,0.76141,2626.4,2626.3,0.7614]
[1752000957978,0.76141,2626.4,2626.3,4.6031]
[1752000958982,2.9941,2626.9,2626.3,7.93922706]
[1752000959180,1.6484,2626.9,2626.4,1.9922]
[1752000959386,0.76131,2626.7,2626.6,0.7613]
[1752000959585,0.76131,2626.7,2626.6,1.3952]
[1752000959985,3.2078,2627.0,2626.6,4.01512706]
[1752000960182,0.76122,2627.1,2627.0,0.76119]
[1752000960388,0.76125,2627.0,2626.9,0.76122]
[1752000960688,1.43115,2627.0,2626.9,0.76122]
[1752000960882,1.43115,2627.0,2626.9,0.6339]
[1752000960883,2.41925,2627.0,2626.9,0.6339]
[1752000961292,1.43115,2627.0,2626.9,1.39514]
[1752000961686,1.43111,2627.0,2626.9,1.39514]
[1752000963091,1.43111,2627.0,2626.9,0.6339]
[1752000963286,0.76125,2626.9,2626.8,0.76124]
[1752000963485,1.43115,2626.9,2626.8,1.39514]
[1752000963684,1.43115,2626.9,2626.8,0.76124]
[1752000963887,1.43115,2626.9,2626.8,1.39514]
[1752000964087,1.43115,2626.9,2626.8,1.90151501]
[1752000964682,1.43115,2626.9,2626.8,1.14027501]
[1752000964884,2.41924,2626.9,2626.8,0.50637501]
[1752000965292,3.71374,2626.9,2626.8,0.50637501]
[1752000966190,0.76128,2626.8,2626.6,0.76131]
[1752000966388,2.77578,2626.8,2626.7,0.50676241]
[1752000966590,4.43378,2626.8,2626.7,0.50676241]
[1752000967693,0.76139,2626.4,2626.2,0.76142]
[1752000968088,0.76138,2626.5,2626.3,0.76142]
[1752000968393,1.3266,2626.4,2626.3,0.76142]
[1752000968596,1.3266,2626.4,2626.3,1.39532]
[1752000968990,0.76134,2626.6,2626.4,0.76137]
[1752000969185,0.76136,2626.5,2626.4,0.76137]
[1752000969396,1.3695,2626.5,2626.4,0.76139]
[1752000969692,2.13086,2626.5,2626.3,1.39529]
[1752000970084,0.6699,2626.4,2626.3,0.76139]
[1752000970892,0.6699,2626.4,2626.3,1.39529]
[1752000971089,0.6699,2626.4,2626.3,0.76139]
[1752000971491,0.6699,2626.4,2626.3,4.60309]
[1752000971687,1.43129,2626.4,2626.3,3.8417]
[1752000971891,2.41939,2626.4,2626.3,3.2078]
[1752000972097,1.90314,2626.9,2626.3,3.2078]
[1752000972098,6.58929337,2627.0,2626.4,1.90349]
[1752000972391,6.58929337,2627.0,2626.9,1.39515]
[1752000972392,0.6699,2627.0,2626.9,1.39515]
[1752000972986,0.6618,2627.2,2627.1,0.76119]
[1752000973193,2.09286,2627.2,2627.1,0.76119]
[1752000973791,2.09286,2627.2,2627.1,0.6339]
[1752000974097,3.36576,2627.2,2627.1,0.6339]
[1752000975388,2.6046,2627.2,2627.1,1.39509]
[1752000975593,3.36576,2627.2,2627.1,0.6339]
[1752000976295,6.74725337,2627.2,2627.1,1.39509]
[1752000976496,6.97419337,2627.2,2627.1,0.76119]
[1752000976697,6.97419337,2627.2,2627.1,1.39509]
[1752000977097,2.3198,2627.2,2627.1,1.39509]
[1752000977700,3.08096,2627.2,2627.1,0.6339]
[1752000978199,2.3198,2627.2,2626.8,0.76126]
[1752000978399,0.76124,2627.0,2626.8,0.76126]
[1752000978598,2.0022,2626.9,2626.8,1.39516]
[1752000978798,2.0022,2626.9,2626.8,0.76126]
[1752000979898,2.0022,2626.9,2626.8,1.39516]
[1752000980101,0.6699,2626.9,2626.8,1.39516]
[1752000980597,0.6618,2627.2,2626.8,0.6339]
[1752000980896,2.41107,2627.2,2627.1,0.76119]
[1752000981203,0.76119,2627.1,2627.0,0.7612]
[1752000981397,0.76124,2627.0,2626.9,0.76123]
[1752000981603,0.76127,2626.9,2626.8,0.76127]
[1752000981801,0.76128,2626.8,2626.7,3.2078]
[1752000982005,1.3142,2626.8,2626.7,4.6442]
[1752000982609,0.76136,2626.6,2626.4,0.76137]
[1752000982793,1.42536,2626.5,2626.4,1.43647]
[1752000982999,1.967,2626.5,2626.4,0.76137]
[1752000983201,1.967,2626.5,2626.4,1.43647]
[1752000983399,2.72836,2626.5,2626.4,0.76137]
[1752000983696,1.967,2626.5,2626.4,1.43647]
[1752000983899,2.9374,2626.5,2626.2,1.69719331]
[1752000984199,0.76145,2626.2,2626.1,4.90499331]
[1752000984399,0.76145,2626.2,2626.1,1.69719331]
[1752000984604,1.90349,2626.4,2626.0,1.69719331]
[1752000984605,0.76148,2626.1,2626.0,1.69719331]
[1752000984901,2.0515,2626.3,2625.9,2.45873331]
[1752000984902,0.76151,2626.0,2625.9,2.45873331]
[1752000985103,0.76151,2626.0,2625.9,3.13383331]
[1752000985298,0.76151,2626.0,2625.9,1.43664]
[1752000985503,0.76149,2626.1,2625.9,0.76154]
[1752000985703,0.76149,2626.1,2626.0,2.46360675]
[1752000986204,0.76146,2626.2,2626.0,2.46358675]
[1752000986400,1.3746,2626.2,2626.1,0.76148]
[1752000986595,1.3746,2626.2,2626.1,1.43658]
[1752000986804,0.6769,2626.3,2626.2,0.76145]
[1752000987010,1.43832,2626.3,2626.1,0.6751]
[1752000987407,0.664,2626.2,2626.1,1.43656]
[1752000987607,3.2078,2626.5,2626.4,0.76139]
[1752000987806,1.42536,2626.5,2626.4,0.6751]
[1752000988007,0.664,2626.5,2626.2,3.96923]
[1752000988206,0.76142,2626.3,2626.2,3.2078]
[1752000988406,3.1852,2626.4,2625.9,3.2078]
[1752000988606,1.2817,2626.2,2625.9,3.96934]
[1752000988909,0.76148,2626.1,2625.9,3.96934]
[1752000989108,0.664,2626.0,2625.9,3.96934]
[1752000989309,0.664,2626.0,2625.9,4.64444]
[1752000989714,0.661,2626.1,2626.0,0.76151]
[1752000989913,1.325,2626.1,2626.0,1.43661]
[1752000990210,0.664,2626.1,2626.0,1.43661]
[1752000990605,3.2078,2626.5,2626.2,0.76143]
[1752000990804,0.664,2626.3,2626.0,1.961]
[1752000991004,0.664,2626.3,2625.9,1.70209675]
[1752000991005,0.76151,2626.0,2625.9,1.70209675]
[1752000991520,0.76154,2625.9,2625.8,2.46364675]
[1752000991818,0.76151,2626.0,2625.8,5.58499675]
[1752000992016,1.3766,2626.0,2625.9,0.76151]
[1752000992216,2.13811,2626.0,2625.9,2.46360675]
[1752000992414,2.13811,2626.0,2625.9,3.13870675]
[1752000992615,2.13811,2626.0,2625.9,2.46360675]
[1752000992919,2.13811,2626.0,2625.9,0.76151]
[1752000993109,2.13811,2626.0,2625.9,1.43661]
[1752000993315,2.13811,2626.0,2625.9,0.76151]
[1752000993515,3.77251,2626.0,2625.9,1.43661]
[1752000994023,3.77251,2626.0,2625.9,0.76151]
[1752000994418,3.77251,2626.0,2625.9,0.6751]
[1752000995623,0.76157,2625.8,2625.7,1.70209675]
[1752000995824,0.664,2625.8,2625.7,2.46368675]
[1752000996024,1.6344,2625.8,2625.7,2.46368675]
[1752000996219,2.39597,2625.8,2625.7,1.70209675]
[1752000996424,3.73557,2625.8,2625.7,1.70209675]
[1752000996619,3.73557,2625.8,2625.7,2.37719675]
[1752000996819,3.73557,2625.8,2625.7,2.46368675]
[1752000997014,2.76517,2625.8,2625.7,0.6751]
[1752000997323,0.76159,2625.7,2625.6,1.70209675]
[1752000997521,4.36809,2625.7,2625.6,1.70209675]
[1752000997923,3.6065,2625.7,2625.4,3.05100967]
[1752000998225,1.73202,2625.6,2625.5,1.70162664]
[1752000998522,0.76168,2625.4,2625.3,1.70162664]
[1752000998727,0.76171,2625.3,2625.2,2.46334664]
[1752000998920,2.11311,2625.3,2625.2,2.46334664]
[1752000999121,1.3514,2625.3,2625.2,2.46334664]
[1752000999521,2.3218,2625.3,2625.2,3.13844664]
[1752001000517,2.3218,2625.3,2625.2,1.43682]
[1752001001525,1.3514,2625.3,2625.2,1.43682]
[1752001001926,2.11311,2625.3,2625.2,0.6751]
[1752001002121,3.08351,2625.3,2625.2,0.6751]
[1752001002322,0.76176,2625.2,2625.0,3.96958]
[1752001002527,0.664,2625.2,2625.1,0.76177]
[1752001002827,0.664,2625.2,2625.1,1.43687]
[1752001003223,1.42574,2625.2,2625.1,0.6751]
[1752001003420,0.76177,2625.1,2625.0,3.96959]
[1752001003622,0.76177,2625.1,2625.0,4.64468]
[1752001003821,1.42577,2625.1,2625.0,4.64468]
[1752001005027,1.6344,2625.1,2625.0,4.64468]
[1752001005226,2.39617,2625.1,2625.0,4.64468]
[1752001005427,2.39617,2625.1,2625.0,3.8829]
[1752001005625,2.39617,2625.1,2625.0,0.6751]
[1752001005826,2.39617,2625.1,2624.9,3.2078]
[1752001005827,0.7618,2625.0,2624.9,3.2078]
[1752001006025,0.76183,2624.9,2624.8,1.44853]
[1752001006226,1.73221,2625.0,2624.9,0.76183]
[1752001006427,2.39621,2625.0,2624.9,0.76183]
[1752001006826,2.39621,2625.0,2624.9,1.43693]
[1752001007829,2.39621,2625.0,2624.9,3.8829]
[1752001008227,0.76188,2624.7,2624.6,3.2078]
[1752001008425,0.664,2624.7,2624.6,4.64481]
[1752001008620,0.664,2624.7,2624.6,3.96971]
[1752001008827,0.664,2624.7,2624.6,4.64481]
[1752001013431,0.657,2624.9,2624.8,0.76186]
[1752001013627,1.3121,2624.9,2624.8,1.39256]
[1752001013829,2.2685,2624.9,2624.8,1.39256]
[1752001014131,3.03033,2624.9,2624.8,1.39256]
[1752001016130,0.76188,2624.7,2624.6,5.59580788]
[1752001016332,0.6551,2624.7,2624.6,6.22653788]
[1752001016534,0.6551,2624.7,2624.6,5.59583788]
[1752001016837,2.37338,2624.7,2624.6,4.60041]
[1752001017234,2.37338,2624.7,2624.6,3.2078]
[1752001017734,3.73828,2624.7,2624.6,3.2078]
[1752001018628,0.76197,2624.4,2624.3,0.76198]
[1752001018833,1.6115,2624.4,2624.3,0.76198]
[1752001019132,1.6115,2624.4,2624.3,1.39268]
[1752001019436,3.03687,2624.4,2624.3,0.76198]
[1752001019634,3.03687,2624.4,2624.3,1.39268]
[1752001020035,2.2749,2624.4,2624.3,1.39268]
[1752001022832,3.03687,2624.4,2624.3,1.39268]
[1752001023038,2.2749,2624.4,2624.3,1.39268]
[1752001023333,0.6634,2624.4,2624.3,0.76198]
[1752001023534,1.3185,2624.4,2624.3,1.39268]
[1752001023733,0.76184,2624.9,2624.8,0.76186]
[1752001023940,2.08954,2624.9,2624.8,0.76186]
[1752001024136,2.08954,2624.9,2624.8,1.39256]
[1752001024427,3.04594,2624.9,2624.8,1.39256]
[1752001025042,1.3277,2624.9,2624.8,1.39256]
[1752001025230,3.04593,2624.9,2624.8,1.39256]
[1752001026236,2.2841,2624.9,2624.8,1.39256]
[1752001026436,3.04593,2624.9,2624.8,1.39256]
[1752001026632,4.92595,2625.2,2625.1,0.76177]
[1752001026837,2.37325,2625.2,2625.1,0.76177]
[1752001027238,3.62835,2625.2,2625.1,0.76177]
[1752001027436,0.76183,2625.0,2624.9,0.7618]
[1752001027636,2.37333,2625.0,2624.9,0.7618]
[1752001027840,2.3733,2625.0,2624.9,0.7618]
[1752001028137,1.6115,2625.0,2624.9,0.7618]
[1752001028537,2.3733,2625.0,2624.9,1.3925]
[1752001029040,2.3733,2625.0,2624.9,0.7618]
[1752001029542,1.6115,2625.0,2624.9,0.7618]
[1752001029740,2.3733,2625.0,2624.9,1.3925]
[1752001030136,2.3733,2625.0,2624.9,0.7618]
[1752001031340,1.6115,2625.0,2624.9,0.7618]
[1752001031541,1.6115,2625.0,2624.9,1.3925]
[1752001031941,0.6551,2625.0,2624.9,1.3925]
[1752001032136,0.6551,2625.0,2624.9,0.7618]
[1752001032640,0.6551,2625.0,2624.9,1.3925]
[1752001032843,0.6551,2625.0,2624.9,0.7618]
[1752001033235,0.6551,2625.0,2624.9,1.3925]
[1752001033434,2.01685,2625.2,2624.8,5.90996452]
[1752001033647,0.6551,2625.0,2624.9,1.39253]
[1752001033847,1.4169,2625.0,2624.9,4.60033]
[1752001034144,1.2551,2625.2,2625.1,0.76177]
[1752001034346,1.41685,2625.2,2625.1,1.39247]
[1752001034646,1.41685,2625.2,2625.1,0.76177]
[1752001035248,1.41685,2625.2,2625.1,1.39247]
[1752001035442,1.41685,2625.2,2625.1,0.76177]
[1752001035642,1.41685,2625.2,2625.1,1.39247]
[1752001037147,0.6551,2625.2,2625.1,1.39247]
[1752001038245,1.41684,2625.2,2625.1,1.39247]
[1752001039046,1.6115,2625.2,2625.1,1.39247]
[1752001039542,2.37324,2625.2,2625.1,1.39247]
[1752001039845,1.6115,2625.2,2625.1,1.39247]
[1752001040445,0.6551,2625.2,2625.1,1.39247]
[1752001041045,53.5767,2625.4,2625.1,0.6307]
[1752001041249,53.5767,2625.4,2625.3,0.76171]
[1752001041445,53.5767,2625.4,2625.3,1.45101]
[1752001041748,54.5331,2625.4,2625.3,1.45101]
[1752001041940,52.815,2625.4,2625.3,1.45101]
[1752001043156,1.9944,2625.5,2625.4,0.76168]
[1752001043352,2.75605,2625.5,2625.4,0.76168]
[1752001043652,4.36995,2625.5,2625.4,0.76168]
[1752001044246,3.6083,2625.5,2625.4,1.45098]
[1752001044448,55.64155,2625.9,2625.5,1.9041]
[1752001044753,0.663,2625.6,2625.5,5.59557788]
[1752001044955,0.663,2625.6,2625.5,6.28487788]
[1752001045454,1.6139,2625.6,2625.5,3.96945]
[1752001045756,2.37552,2625.6,2625.5,0.76165]
[1752001046150,1.6139,2625.6,2625.5,1.45095]
[1752001046454,2.37552,2625.6,2625.5,3.96945]
[1752001047753,27.9199,2625.6,2625.5,3.96945]
[1752001047955,28.68152,2625.6,2625.5,3.96945]
[1752001048252,29.2483,2625.6,2625.5,3.96945]
[1752001049456,30.00992,2625.6,2625.5,3.96945]
[1752001050054,0.76171,2625.4,2625.2,4.90942664]
[1752001050253,2.38783788,2625.4,2625.3,0.7617]
[1752001050454,54.96883788,2625.4,2625.3,0.7617]
[1752001050654,56.58273788,2625.4,2625.3,0.7617]
[1752001051060,1.6139,2625.4,2625.3,0.7617]
[1752001051251,27.9069,2625.4,2625.3,1.451]
[1752001051758,28.66858,2625.4,2625.3,0.7617]
[1752001052159,28.66858,2625.4,2625.3,1.451]
[1752001052656,2.37558,2625.4,2625.3,1.451]
[1752001052856,28.66858,2625.4,2625.3,1.451]
[1752001053356,27.05468,2625.4,2625.3,0.7617]
[1752001053557,28.66858,2625.4,2625.3,0.7617]
[1752001053854,28.66858,2625.4,2625.3,1.451]
[1752001054356,27.71768,2625.4,2625.3,1.451]
[1752001054659,1.42468,2625.4,2625.3,1.451]
[1752001054959,26.944,2625.4,2625.3,1.451]
[1752001055163,0.663,2625.4,2625.3,2.1135]
[1752001057362,1.42468,2625.4,2625.3,2.1135]
[1752001058663,0.663,2625.4,2625.3,2.1135]
[1752001059765,54.88,2625.9,2625.5,1.90414]
[1752001059967,0.7616,2625.8,2625.7,0.76157]
[1752001060165,26.925,2625.8,2625.7,1.45087]
[1752001060366,27.68657,2625.8,2625.7,1.45087]
[1752001060567,28.63747,2625.8,2625.7,1.45087]
[1752001062367,2.37547,2625.8,2625.7,1.45087]
[1752001062563,28.62747,2625.8,2625.7,0.76157]
[1752001063069,28.62747,2625.8,2625.7,0.76159]
[1752001064469,0.76159,2625.7,2625.6,3.96942]
[1752001064669,2.69369,2625.7,2625.6,3.96942]
[1752001064869,3.64459,2625.7,2625.6,3.96942]
[1752001065066,3.64459,2625.7,2625.6,3.2078]
[1752001065268,4.50912788,2625.7,2625.4,1.70162664]
[1752001065466,55.35097,2625.6,2625.3,4.90942664]
[1752001065672,1.42468,2625.4,2625.3,3.96948]
[1752001065972,54.87158,2625.4,2625.3,3.2078]
[1752001066171,56.15098,2625.4,2625.3,3.2078]
[1752001066376,56.15098,2625.4,2625.3,3.96951]
[1752001066571,56.15098,2625.4,2625.3,3.2078]
[1752001067170,56.15098,2625.4,2625.3,3.96951]
[1752001067373,56.15098,2625.4,2625.3,3.2078]
[1752001068369,56.15098,2625.4,2625.2,1.70162664]
[1752001068572,0.76174,2625.2,2625.1,1.70162664]
[1752001068773,0.76183,2624.9,2624.8,1.70162664]
[1752001069075,1.42483,2624.9,2624.8,2.39092664]
[1752001069280,1.42483,2624.9,2624.8,0.76186]
[1752001069678,1.42483,2624.9,2624.8,1.45116]
[1752001069873,1.42483,2624.9,2624.8,0.6893]
[1752001070069,0.76186,2624.8,2624.7,7.29741452]
[1752001070269,26.911,2624.9,2624.8,0.76186]
[1752001070470,0.663,2624.9,2624.8,2.46348664]
[1752001070673,0.663,2624.9,2624.8,3.10368664]
[1752001071382,0.9509,2625.1,2625.0,0.7618]
[1752001071578,0.9509,2625.1,2625.0,3.9696]
[1752001072073,0.76172,2625.3,2625.2,0.76174]
[1752001072278,0.76172,2625.3,2625.2,2.38786788]
[1752001072279,1.41022,2625.3,2625.2,2.38786788]
[1752001073180,0.6485,2625.3,2625.2,2.38786788]
[1752001073381,0.76171,2625.3,2625.2,2.38786788]
[1752001073577,1.41021,2625.3,2625.2,3.06276788]
[1752001074075,1.41021,2625.3,2625.2,1.43664]
[1752001075981,1.41021,2625.3,2625.2,3.06276788]
[1752001076481,0.6485,2625.3,2625.2,3.06276788]
[1752001078277,27.0117,2625.4,2625.2,3.06276788]
[1752001078278,27.01168,2625.4,2625.3,0.76171]
[1752001078480,27.66018,2625.4,2625.3,3.96951]
[1752001078679,26.8985,2625.4,2625.3,4.64441]
[1752001079382,27.66018,2625.4,2625.3,4.64441]
[1752001079682,26.8985,2625.4,2625.3,4.64441]
[1752001079982,27.66018,2625.4,2625.3,4.64441]
[1752001081677,28.30298,2625.4,2625.3,3.96951]
[1752001081984,29.90338,2625.4,2625.3,3.96951]
[1752001082683,0.76177,2625.2,2625.1,0.76177]
[1752001082883,0.76177,2625.2,2625.1,1.43667]
[1752001083286,0.76177,2625.2,2625.1,0.76177]
[1752001083682,0.76172,2625.3,2625.2,0.76174]
[1752001083884,0.6485,2625.3,2625.2,1.62612788]
[1752001084080,0.6485,2625.3,2625.2,2.30102788]
[1752001084282,0.6485,2625.3,2625.2,2.38786788]
[1752001084484,0.6485,2625.3,2625.2,3.06276788]
[1752001084887,26.8806,2625.5,2625.4,0.76168]
[1752001085090,28.29075,2625.5,2625.4,5.59560788]
[1752001086184,2.04175,2625.5,2625.4,5.59560788]
[1752001086489,28.29075,2625.5,2625.4,5.59560788]
[1752001087182,27.5291,2625.5,2625.4,5.59560788]
[1752001087487,1.2801,2625.5,2625.4,6.27050788]
[1752001088585,2.04175,2625.5,2625.4,6.27050788]
[1752001088986,2.99365,2625.5,2625.4,4.64438]
[1752001089784,1.2801,2625.5,2625.4,6.27050788]
[1752001090788,2.04175,2625.5,2625.4,6.27050788]
[1752001090990,2.232,2625.5,2625.4,4.64438]
[1752001091295,2.99365,2625.5,2625.4,3.2078]
[1752001091685,4.34025,2625.5,2625.4,3.2078]
[1752001091887,4.34025,2625.5,2625.2,1.70155475]
[1752001091888,0.76171,2625.3,2625.2,1.70155475]
[1752001092089,30.23523788,2625.3,2625.2,1.70155475]
[1752001092290,28.60911,2625.3,2625.2,1.70155475]
[1752001092489,0.76174,2625.2,2625.1,2.46330475]
[1752001092692,3.70874,2625.2,2625.1,2.46330475]
[1752001092894,3.70874,2625.2,2625.1,1.70155475]